fUSD/lending_fUSD_20250417
["ID","MTS","AMOUNT","RATE_DAILY","PERIOD"]
[358234090,1744860639351,-1582.1747,0.00051954,2]
[358234091,1744860639361,-521.3916,0.00051954,2]
[358234092,1744860639371,-1941.6203051,0.00051954,24]
[358234093,1744860639380,-804.29046213,0.00051954,15]
[358234094,1744860639390,-450.95,0.00051965,30]
[358234095,1744860639400,-886.86,0.00051965,30]
[358234096,1744860639410,-450.95,0.00051965,30]
[358234097,1744860639419,-449.39,0.00051965,30]
[358234098,1744860639429,-3212.1172025,0.00051966,15]
[358234099,1744860639439,-450.95,0.00051981,30]
[358234100,1744860639448,-793.45,0.00051981,30]
[358234101,1744860639457,-793.45,0.00051981,30]
[358234102,1744860639467,-450.95,0.00051981,30]
[358234103,1744860639477,-793.45,0.00051981,30]
[358234104,1744860639487,-450.95,0.00051981,30]
[358234105,1744860639498,-450.95,0.00051981,30]
[358234106,1744860639508,-793.45,0.00051981,30]
[358234107,1744860639519,-793.45,0.00051981,30]
[358234108,1744860639529,-450.95,0.00051981,30]
[358234109,1744860639539,-450.95,0.00051981,30]
[358234110,1744860639548,-793.45,0.00051981,30]
[358234111,1744860639558,-793.45,0.00051981,30]
[358234112,1744860639567,-450.95,0.00051981,30]
[358234113,1744860639577,-450.95,0.00051981,30]
[358234114,1744860639586,-793.45,0.00051981,30]
[358234115,1744860639596,-793.45,0.00051981,30]
[358234116,1744860639606,-450.95,0.00051981,30]
[358234117,1744860639615,-1250.13,0.00052,120]
[358234118,1744860639625,-2000.0,0.00052,120]
[358234119,1744860639634,-1000.0,0.00052,120]
[358234120,1744860639644,-1025.06939548,0.00052,120]
[358234121,1744860639654,-3000.0,0.00052,120]
[358234122,1744860639663,-693.58394987,0.00052,30]
[358234123,1744860639673,-150.0,0.00052008,7]
[358234124,1744860639682,-153.0,0.00052013,60]
[358234125,1744860639692,-153.0,0.00052013,60]
[358234126,1744860639702,-153.0,0.00052013,60]
[358234127,1744860639711,-153.0,0.00052013,60]
[358234128,1744860639721,-153.0,0.00052013,60]
[358234129,1744860639731,-153.0,0.00052013,60]
[358234130,1744860639740,-153.0,0.00052013,60]
[358234131,1744860639749,-153.0,0.00052013,60]
[358234132,1744860639758,-153.0,0.00052013,60]
[358234133,1744860639767,-153.0,0.00052013,60]
[358234134,1744860639776,-153.0,0.00052013,60]
[358234135,1744860639785,-153.0,0.00052013,60]
[358234136,1744860639794,-153.0,0.00052013,60]
[358234137,1744860639803,-153.0,0.00052013,60]
[358234138,1744860639811,-153.0,0.00052013,60]
[358234139,1744860639821,-153.0,0.00052013,60]
[358234140,1744860639831,-153.0,0.00052013,60]
[358234141,1744860639840,-153.0,0.00052013,60]
[358234142,1744860639850,-153.0,0.00052013,60]
[358234143,1744860639859,-153.0,0.00052013,60]
[358234144,1744860639869,-153.0,0.00052013,60]
[358234145,1744860639878,-153.0,0.00052013,60]
[358234146,1744860639888,-153.0,0.00052013,60]
[358234147,1744860639897,-153.0,0.00052013,60]
[358234148,1744860639907,-153.0,0.00052013,60]
[358234149,1744860639916,-153.0,0.00052013,60]
[358234150,1744860639926,-153.0,0.00052013,60]
[358234151,1744860639935,-153.0,0.00052013,60]
[358234152,1744860639944,-153.0,0.00052013,60]
[358234153,1744860639954,-153.0,0.00052013,60]
[358234154,1744860639962,-153.0,0.00052013,60]
[358234155,1744860639972,-153.0,0.00052013,60]
[358234156,1744860639981,-153.0,0.00052013,60]
[358234157,1744860639990,-153.0,0.00052013,60]
[358234158,1744860639998,-153.0,0.00052013,60]
[358234159,1744860640007,-153.0,0.00052013,60]
[358234160,1744860640016,-153.0,0.00052013,60]
[358234161,1744860640025,-153.0,0.00052013,60]
[358234162,1744860640034,-153.0,0.00052013,60]
[358234163,1744860640042,-153.0,0.00052013,60]
[358234164,1744860640051,-153.0,0.00052013,60]
[358234165,1744860640060,-153.0,0.00052013,60]
[358234166,1744860640068,-153.0,0.00052013,60]
[358234167,1744860640077,-153.0,0.00052013,60]
[358234168,1744860640086,-153.0,0.00052013,60]
[358234169,1744860640094,-153.0,0.00052013,60]
[358234170,1744860640103,-153.0,0.00052013,60]
[358234171,1744860640112,-153.0,0.00052013,60]
[358234172,1744860640121,-153.0,0.00052013,60]
[358234173,1744860640130,-153.0,0.00052013,60]
[358234174,1744860640140,-153.0,0.00052013,60]
[358234175,1744860640149,-153.0,0.00052013,60]
[358234176,1744860640157,-153.0,0.00052013,60]
[358234177,1744860640166,-153.0,0.00052013,60]
[358234178,1744860640176,-153.0,0.00052013,60]
[358234179,1744860640187,-153.0,0.00052013,60]
[358234180,1744860640196,-153.0,0.00052013,60]
[358234181,1744860640205,-153.0,0.00052013,60]
[358234182,1744860640214,-153.0,0.00052016,60]
[358234183,1744860640224,-153.0,0.00052016,60]
[358234184,1744860640233,-153.0,0.00052016,60]
[358234185,1744860640242,-153.0,0.00052016,60]
[358234186,1744860640252,-153.0,0.00052016,60]
[358234187,1744860640261,-153.0,0.00052016,60]
[358234188,1744860640270,-153.0,0.00052016,60]
[358234189,1744860640280,-153.0,0.00052016,60]
[358234190,1744860640289,-153.0,0.00052016,60]
[358234191,1744860640301,-153.0,0.00052016,60]
[358234192,1744860640316,-153.0,0.00052016,60]
[358234193,1744860640328,-153.0,0.00052016,60]
[358234194,1744860640340,-153.0,0.00052016,60]
[358234195,1744860640349,-153.0,0.00052016,60]
[358234196,1744860640359,-153.0,0.00052016,60]
[358234197,1744860640367,-153.0,0.00052016,60]
[358234198,1744860640376,-153.0,0.00052016,60]
[358234199,1744860640384,-153.0,0.00052016,60]
[358234200,1744860640394,-153.0,0.00052016,60]
[358234201,1744860640403,-153.0,0.00052016,60]
[358234202,1744860640412,-153.0,0.00052016,60]
[358234203,1744860640421,-153.0,0.00052016,60]
[358234204,1744860640431,-153.0,0.00052016,60]
[358234205,1744860640440,-153.0,0.00052016,60]
[358234206,1744860640449,-153.0,0.00052016,60]
[358234207,1744860640459,-153.0,0.00052016,60]
[358234208,1744860640468,-153.0,0.00052016,60]
[358234209,1744860640477,-153.0,0.00052016,60]
[358234210,1744860640486,-153.0,0.00052016,60]
[358234211,1744860640495,-153.0,0.00052016,60]
[358234212,1744860640505,-153.0,0.00052016,60]
[358234213,1744860640514,-153.0,0.00052016,60]
[358234214,1744860640523,-153.0,0.00052016,60]
[358234215,1744860640532,-153.0,0.00052016,60]
[358234216,1744860640541,-153.0,0.00052016,60]
[358234217,1744860640551,-153.0,0.00052016,60]
[358234218,1744860640560,-153.0,0.00052016,60]
[358234219,1744860640569,-153.0,0.00052016,60]
[358234220,1744860640579,-153.0,0.00052016,60]
[358234221,1744860640588,-153.0,0.00052016,60]
[358234222,1744860640597,-153.0,0.00052016,60]
[358234223,1744860640606,-153.0,0.00052016,60]
[358234224,1744860640616,-153.0,0.00052016,60]
[358234225,1744860640624,-153.0,0.00052016,60]
[358234226,1744860640634,-153.0,0.00052016,60]
[358234227,1744860640643,-153.0,0.00052016,60]
[358234228,1744860640652,-153.0,0.00052016,60]
[358234229,1744860640661,-153.0,0.00052016,60]
[358234230,1744860640671,-14299.7475022,0.00052034,4]
[358234231,1744860640680,-2199.96115418,0.00052042,4]
[358234232,1744860640688,-7699.86403963,0.00052044,4]
[358234233,1744860640697,-88060.97307507,0.00052044,4]
[358234234,1744860641532,-150.0,0.0005011,30]
[358234235,1744860641541,-594.96847343,0.00052044,4]
[358234236,1744860641553,-670.47054587,0.00052044,4]
[358234237,1744860641642,-0.00311867,0.00052044,4]
[358234238,1744860641669,-10273.69256176,0.00052044,4]
[358234239,1744860641678,-964.65,0.00052044,2]
[358234240,1744860641688,-254.26382086,0.00052054,16]
[358234241,1744860641700,-503.36742057,0.00052054,120]
[358234242,1744860641709,-500.0,0.00052054,120]
[358234243,1744860641719,-405.07702448,0.00052054,120]
[358234244,1744860641729,-2170.71,0.00052054,120]
[358234245,1744860641738,-1356.51,0.00052054,120]
[358234246,1744860641748,-500.0,0.00052054,120]
[358234247,1744860641757,-500.0,0.00052054,120]
[358234248,1744860641767,-642.7823509,0.00052054,120]
[358234249,1744860641777,-501.4339508,0.00052054,120]
[358234250,1744860641787,-500.0,0.00052054,120]
[358234251,1744860641796,-500.7754122,0.00052054,120]
[358234252,1744860641806,-500.0,0.00052054,120]
[358234253,1744860641816,-447.10932046,0.00052054,120]
[358234254,1744860641826,-500.0,0.00052054,120]
[358234255,1744860641835,-500.0,0.00052054,120]
[358234256,1744860641846,-242.64038369,0.00052054,120]
[358234257,1744860641855,-500.0,0.00052054,120]
[358234258,1744860641864,-515.2,0.00052054,14]
[358234259,1744860641875,-500.0,0.00052054,120]
[358234260,1744860641883,-500.0,0.00052054,120]
[358234261,1744860641892,-500.0,0.00052054,120]
[358234262,1744860641901,-500.0,0.00052054,120]
[358234263,1744860641910,-500.0,0.00052054,120]
[358234264,1744860641919,-500.0,0.00052054,120]
[358234265,1744860641928,-500.0,0.00052054,14]
[358234266,1744860641937,-500.0,0.00052054,120]
[358234267,1744860641946,-500.0,0.00052054,120]
[358234268,1744860641955,-500.0,0.00052054,120]
[358234269,1744860641964,-578.99,0.00052054,120]
[358234270,1744860641973,-500.0,0.00052054,120]
[358234271,1744860641982,-500.0,0.00052054,120]
[358234272,1744860641991,-500.0,0.00052054,120]
[358234273,1744860642001,-541.50803072,0.00052054,120]
[358234274,1744860642010,-808.93,0.00052054,120]
[358234275,1744860642019,-500.0,0.00052054,120]
[358234276,1744860642029,-500.0,0.00052054,120]
[358234277,1744860642039,-500.0,0.00052054,120]
[358234278,1744860642048,-500.0,0.00052054,120]
[358234279,1744860642057,-533.71,0.00052054,120]
[358234280,1744860642067,-500.0,0.00052054,120]
[358234281,1744860642076,-2000.0,0.00052054,2]
[358234282,1744860642086,-643.15,0.00052054,120]
[358234283,1744860642096,-515.10553339,0.00052054,120]
[358234284,1744860642106,-521.20257305,0.00052054,120]
[358234285,1744860642115,-500.0,0.00052054,120]
[358234286,1744860642124,-500.0,0.00052054,120]
[358234287,1744860642132,-500.0,0.00052054,120]
[358234288,1744860642141,-506.41504585,0.00052054,120]
[358234289,1744860642150,-500.0,0.00052054,120]
[358234290,1744860642158,-631.39,0.00052054,120]
[358234291,1744860642167,-500.22,0.00052054,120]
[358234292,1744860642175,-610.88,0.00052054,120]
[358234293,1744860642185,-500.0,0.00052054,120]
[358234294,1744860642195,-500.0,0.00052054,7]
[358234295,1744860642203,-790.59,0.00052054,120]
[358234296,1744860642213,-1264.31,0.00052054,120]
[358234297,1744860642222,-500.0,0.00052054,120]
[358234298,1744860642232,-500.0,0.00052054,120]
[358234299,1744860642241,-500.0,0.00052054,120]
[358234300,1744860642250,-500.0,0.00052054,120]
[358234301,1744860642259,-500.0,0.00052054,120]
[358234302,1744860642270,-508.124078,0.00052054,120]
[358234303,1744860642279,-500.0,0.00052054,120]
[358234304,1744860642288,-300.0,0.00052054,120]
[358234305,1744860642298,-500.0,0.00052054,120]
[358234306,1744860642307,-554.43946847,0.00052054,120]
[358234307,1744860642316,-1123.5,0.00052054,120]
[358234308,1744860642326,-500.0,0.00052054,120]
[358234309,1744860642336,-500.0,0.00052054,120]
[358234310,1744860642346,-1000.0,0.00052054,120]
[358234311,1744860642355,-256.67164329,0.00052054,120]
[358234312,1744860642364,-500.0,0.00052054,120]
[358234313,1744860642373,-500.0,0.00052054,120]
[358234314,1744860642382,-658.43,0.00052054,120]
[358234315,1744860642391,-500.0,0.00052054,120]
[358234316,1744860642401,-3686.58,0.00052054,120]
[358234317,1744860642411,-2036.26,0.00052054,120]
[358234318,1744860642420,-500.0,0.00052054,120]
[358234319,1744860642429,-500.0,0.00052054,120]
[358234320,1744860642438,-500.0,0.00052054,120]
[358234321,1744860642447,-1581.33,0.00052054,120]
[358234322,1744860642457,-500.0,0.00052054,120]
[358234323,1744860642466,-500.0,0.00052054,120]
[358234324,1744860642475,-641.57,0.00052054,120]
[358234325,1744860642486,-1181.03,0.00052054,120]
[358234326,1744860642495,-500.0,0.00052054,120]
[358234328,1744860642505,-500.0,0.00052054,120]
[358234330,1744860642515,-500.0,0.00052054,120]
[358234332,1744860642524,-500.0,0.00052054,120]
[358234334,1744860642533,-781.35,0.00052054,120]
[358234336,1744860642543,-353.59908211,0.00052054,120]
[358234338,1744860642552,-500.0,0.00052054,120]
[358234340,1744860642561,-500.0,0.00052054,120]
[358234342,1744860642570,-875.24,0.00052054,120]
[358234344,1744860642579,-1894.11,0.00052054,120]
[358234345,1744860642589,-500.0,0.00052054,120]
[358234346,1744860642598,-500.0,0.00052054,120]
[358234347,1744860642608,-500.0,0.00052054,2]
[358234348,1744860642617,-1310.97,0.00052054,35]
[358234349,1744860642626,-707.74,0.00052054,120]
[358234350,1744860642635,-663.31,0.00052054,30]
[358234352,1744860642645,-1600.74,0.00052054,120]
[358234354,1744860642655,-1355.31,0.00052054,120]
[358234355,1744860642664,-1203.96,0.00052054,120]
[358234356,1744860642674,-719.92,0.00052054,120]
[358234357,1744860642683,-500.0,0.00052054,120]
[358234358,1744860642692,-500.0,0.00052054,120]
[358234360,1744860642702,-500.0,0.00052054,120]
[358234362,1744860642711,-600.42,0.00052054,120]
[358234364,1744860642721,-500.0,0.00052054,120]
[358234365,1744860642730,-500.0,0.00052054,120]
[358234367,1744860642740,-1518.64,0.00052054,120]
[358234368,1744860642750,-500.0,0.00052054,120]
[358234369,1744860642759,-506.14,0.00052054,120]
[358234370,1744860642769,-500.0,0.00052054,120]
[358234371,1744860642779,-952.14,0.00052054,120]
[358234372,1744860642788,-500.0,0.00052054,120]
[358234373,1744860642797,-500.0,0.00052054,120]
[358234374,1744860642806,-500.0,0.00052054,120]
[358234375,1744860642815,-500.0,0.00052054,120]
[358234376,1744860642824,-1112.01,0.00052054,120]
[358234377,1744860642834,-876.73,0.00052054,120]
[358234378,1744860642845,-500.0,0.00052054,120]
[358234379,1744860642854,-500.0,0.00052054,120]
[358234380,1744860642863,-1320.81,0.00052054,120]
[358234381,1744860642874,-1231.08,0.00052054,120]
[358234382,1744860642883,-500.0,0.00052054,120]
[358234383,1744860642893,-500.0,0.00052054,120]
[358234384,1744860642903,-1204.54,0.00052054,120]
[358234385,1744860642911,-500.0,0.00052054,120]
[358234386,1744860642920,-500.0,0.00052054,120]
[358234387,1744860642929,-1104.3,0.00052054,120]
[358234388,1744860642938,-6229.88,0.00052054,120]
[358234389,1744860642947,-549.98,0.00052054,120]
[358234390,1744860642957,-500.0,0.00052054,120]
[358234391,1744860642966,-932.31,0.00052054,120]
[358234392,1744860642976,-1000.92,0.00052054,120]
[358234393,1744860642985,-500.0,0.00052054,120]
[358234394,1744860642994,-500.0,0.00052054,120]
[358234395,1744860643004,-1462.94,0.00052054,120]
[358234396,1744860643013,-500.0,0.00052054,120]
[358234397,1744860643022,-500.0,0.00052054,120]
[358234398,1744860643032,-245.366848,0.00052054,120]
[358234399,1744860643041,-576.33,0.00052054,120]
[358234400,1744860643050,-500.0,0.00052054,120]
[358234401,1744860643060,-500.0,0.00052054,120]
[358234402,1744860643068,-1760.22,0.00052054,120]
[358234403,1744860643077,-1000.0,0.00052054,120]
[358234404,1744860643086,-500.0,0.00052054,120]
[358234405,1744860643096,-500.0,0.00052054,120]
[358234406,1744860643105,-2465.28,0.00052054,120]
[358234407,1744860643114,-513.41039682,0.00052054,120]
[358234408,1744860643123,-1186.37,0.00052054,120]
[358234409,1744860643132,-1635.59,0.00052054,120]
[358234410,1744860643141,-515.357512,0.00052054,120]
[358234411,1744860643150,-500.0,0.00052054,120]
[358234412,1744860643159,-320.56232386,0.00052054,120]
[358234413,1744860643168,-821.63,0.00052054,120]
[358234414,1744860643177,-519.86739899,0.00052054,120]
[358234415,1744860643187,-1427.63,0.00052054,120]
[358234416,1744860643197,-1233.82,0.00052054,120]
[358234417,1744860643206,-500.0,0.00052054,120]
[358234418,1744860643214,-500.0,0.00052054,120]
[358234419,1744860643223,-1293.46,0.00052054,120]
[358234420,1744860643232,-762.43,0.00052054,120]
[358234421,1744860643241,-500.0,0.00052054,120]
[358234422,1744860643250,-500.0,0.00052054,30]
[358234423,1744860643259,-523.47,0.00052054,120]
[358234424,1744860643268,-1082.35,0.00052054,120]
[358234425,1744860643279,-622.91,0.00052054,120]
[358234426,1744860643288,-168.462309,0.00052054,120]
[358234427,1744860643297,-520.96,0.00052054,120]
[358234428,1744860643307,-803.46,0.00052054,120]
[358234429,1744860643316,-597.47597344,0.00052054,120]
[358234430,1744860643325,-1644.5,0.00052054,120]
[358234431,1744860643336,-156.987081,0.00052054,120]
[358234432,1744860643348,-1741.74,0.00052054,120]
[358234433,1744860643357,-500.0,0.00052054,120]
[358234434,1744860643366,-500.0,0.00052054,120]
[358234436,1744860643376,-500.0,0.00052054,120]
[358234438,1744860643385,-1990.14,0.00052054,120]
[358234439,1744860643394,-500.0,0.00052054,120]
[358234440,1744860643407,-500.0,0.00052054,120]
[358234441,1744860643415,-847.19,0.00052054,120]
[358234442,1744860643424,-500.0,0.00052054,120]
[358234443,1744860643433,-967.72,0.00052054,30]
[358234444,1744860643444,-2252.26,0.00052054,120]
[358234445,1744860643453,-853.51,0.00052054,120]
[358234446,1744860643461,-500.0,0.00052054,120]
[358234447,1744860643470,-1070.77,0.00052054,120]
[358234448,1744860643479,-500.0,0.00052054,30]
[358234449,1744860643488,-696.37,0.00052054,120]
[358234450,1744860643497,-1715.39,0.00052054,120]
[358234451,1744860643506,-500.0,0.00052054,120]
[358234452,1744860643514,-612.95,0.00052054,120]
[358234453,1744860643523,-888.49,0.00052054,120]
[358234454,1744860643531,-500.0,0.00052054,120]
[358234455,1744860643540,-601.29524987,0.00052054,120]
[358234456,1744860643550,-1606.87,0.00052054,120]
[358234457,1744860643559,-721.03,0.00052054,120]
[358234458,1744860643568,-606.64,0.00052054,120]
[358234459,1744860643578,-725.57,0.00052054,120]
[358234460,1744860643587,-555.12,0.00052054,120]
[358234461,1744860643597,-1409.57,0.00052054,120]
[358234462,1744860643607,-500.0,0.00052054,120]
[358234463,1744860643616,-544.28110448,0.00052054,120]
[358234464,1744860643625,-500.0,0.00052054,120]
[358234465,1744860643635,-500.0,0.00052054,120]
[358234466,1744860643644,-500.0,0.00052054,120]
[358234467,1744860643654,-544.82,0.00052054,120]
[358234468,1744860643664,-933.81,0.00052054,120]
[358234469,1744860643674,-500.0,0.00052054,120]
[358234470,1744860643683,-621.8,0.00052054,120]
[358234471,1744860643692,-662.73,0.00052054,120]
[358234472,1744860643702,-509.64,0.00052054,120]
[358234473,1744860643711,-1755.74,0.00052054,120]
[358234474,1744860643720,-500.0,0.00052054,120]
[358234475,1744860643730,-1379.53,0.00052054,120]
[358234476,1744860643739,-1903.29,0.00052054,120]
[358234477,1744860643749,-1861.56,0.00052054,120]
[358234478,1744860643758,-1689.31,0.00052054,120]
[358234479,1744860643768,-690.58,0.00052054,120]
[358234480,1744860643777,-1326.39,0.00052054,120]
[358234481,1744860643787,-527.24,0.00052054,120]
[358234482,1744860643797,-500.0,0.00052054,120]
[358234483,1744860643806,-500.0,0.00052054,120]
[358234484,1744860643815,-500.0,0.00052054,120]
[358234485,1744860643825,-500.0,0.00052054,120]
[358234486,1744860643834,-932.63,0.00052054,120]
[358234487,1744860643843,-500.0,0.00052054,120]
[358234488,1744860643852,-1367.42,0.00052054,120]
[358234489,1744860643860,-500.0,0.00052054,120]
[358234490,1744860643869,-1669.15,0.00052054,120]
[358234491,1744860643878,-500.0,0.00052054,120]
[358234492,1744860643886,-613.53,0.00052054,120]
[358234493,1744860643894,-1129.46,0.00052054,120]
[358234494,1744860643903,-721.84,0.00052054,120]
[358234495,1744860643912,-500.0,0.00052054,120]
[358234496,1744860643920,-500.0,0.00052054,120]
[358234497,1744860643928,-500.0,0.00052054,120]
[358234498,1744860643937,-500.0,0.00052054,120]
[358234499,1744860643945,-500.0,0.00052054,120]
[358234500,1744860643954,-500.0,0.00052054,120]
[358234501,1744860643963,-1768.89,0.00052054,120]
[358234502,1744860643973,-1266.01,0.00052054,120]
[358234503,1744860643982,-1697.26,0.00052054,120]
[358234504,1744860643991,-500.0,0.00052054,120]
[358234505,1744860644000,-500.0,0.00052054,120]
[358234506,1744860644009,-500.0,0.00052054,120]
[358234507,1744860644019,-1585.3,0.00052054,120]
[358234508,1744860644027,-1104.5,0.00052054,120]
[358234509,1744860644035,-902.1,0.00052054,120]
[358234510,1744860644043,-2294.9,0.00052054,120]
[358234511,1744860644052,-1826.47,0.00052054,120]
[358234512,1744860644060,-1777.89,0.00052054,120]
[358234513,1744860644069,-500.0,0.00052054,120]
[358234514,1744860644077,-500.0,0.00052054,120]
[358234515,1744860644087,-520.23,0.00052054,120]
[358234516,1744860644097,-500.0,0.00052054,120]
[358234517,1744860644107,-1485.2,0.00052054,120]
[358234518,1744860644117,-1485.2,0.00052054,120]
[358234519,1744860644126,-1414.25,0.00052054,120]
[358234520,1744860644135,-500.0,0.00052054,120]
[358234521,1744860644145,-2564.69,0.00052054,120]
[358234522,1744860644155,-500.0,0.00052054,120]
[358234523,1744860644165,-500.0,0.00052054,120]
[358234524,1744860644175,-500.0,0.00052054,120]
[358234525,1744860644190,-500.0,0.00052054,120]
[358234526,1744860644199,-1747.3,0.00052054,120]
[358234527,1744860644208,-1309.68,0.00052054,120]
[358234528,1744860644217,-500.0,0.00052054,120]
[358234529,1744860644226,-500.3,0.00052054,120]
[358234530,1744860644235,-500.0,0.00052054,120]
[358234531,1744860644244,-500.0,0.00052054,120]
[358234532,1744860644252,-500.0,0.00052054,120]
[358234533,1744860644261,-500.0,0.00052054,120]
[358234534,1744860644272,-500.0,0.00052054,120]
[358234535,1744860644282,-500.0,0.00052054,120]
[358234536,1744860644291,-690.91,0.00052054,120]
[358234537,1744860644300,-786.41,0.00052054,8]
[358234538,1744860644309,-500.0,0.00052054,120]
[358234539,1744860644317,-500.0,0.00052054,120]
[358234540,1744860644326,-500.0,0.00052054,120]
[358234541,1744860644336,-1241.25,0.00052054,120]
[358234542,1744860644345,-1470.59,0.00052054,120]
[358234543,1744860644355,-500.0,0.00052054,120]
[358234544,1744860644364,-1192.96,0.00052054,120]
[358234545,1744860644373,-628.59,0.00052054,120]
[358234546,1744860644382,-620.78,0.00052054,120]
[358234547,1744860644391,-713.66,0.00052054,120]
[358234548,1744860644400,-500.0,0.00052054,120]
[358234549,1744860644409,-500.0,0.00052054,120]
[358234550,1744860644418,-500.0,0.00052054,120]
[358234551,1744860644427,-992.15,0.00052054,120]
[358234552,1744860644436,-1929.31,0.00052054,120]
[358234553,1744860644445,-500.0,0.00052054,120]
[358234554,1744860644454,-500.0,0.00052054,120]
[358234555,1744860644463,-641.93,0.00052054,120]
[358234556,1744860644472,-500.0,0.00052054,120]
[358234557,1744860644481,-1030.6,0.00052054,120]
[358234558,1744860644490,-500.0,0.00052054,120]
[358234559,1744860644499,-661.61,0.00052054,120]
[358234560,1744860644508,-959.25,0.00052054,120]
[358234561,1744860644517,-500.0,0.00052054,120]
[358234562,1744860644526,-500.0,0.00052054,120]
[358234563,1744860644535,-526.57,0.00052054,120]
[358234564,1744860644544,-1385.59,0.00052054,120]
[358234565,1744860644553,-267.672948,0.00052054,120]
[358234566,1744860644562,-500.0,0.00052054,120]
[358234567,1744860644571,-1436.43,0.00052054,120]
[358234568,1744860644579,-1854.51,0.00052054,120]
[358234569,1744860644588,-500.0,0.00052054,120]
[358234570,1744860644597,-1576.23,0.00052054,120]
[358234571,1744860644607,-500.0,0.00052054,120]
[358234572,1744860644615,-504.07,0.00052054,120]
[358234573,1744860644623,-1459.77,0.00052054,120]
[358234574,1744860644632,-570.29,0.00052054,120]
[358234575,1744860644640,-819.04,0.00052054,120]
[358234576,1744860644650,-858.17,0.00052054,120]
[358234577,1744860644659,-506.42,0.00052054,120]
[358234578,1744860644668,-187.402731,0.00052054,120]
[358234579,1744860644678,-1654.19,0.00052054,120]
[358234580,1744860644687,-217.942532,0.00052054,120]
[358234581,1744860644696,-261.23549694,0.00052054,120]
[358234582,1744860644705,-500.0,0.00052054,120]
[358234583,1744860644715,-500.0,0.00052054,120]
[358234584,1744860644723,-1868.56,0.00052054,120]
[358234585,1744860644733,-923.93,0.00052054,120]
[358234586,1744860644954,-861.38,0.00052054,120]
[358234587,1744860644961,-168.462314,0.00052054,120]
[358234588,1744860644968,-159.93948169,0.00052054,120]
[358234589,1744860644976,-500.0,0.00052054,120]
[358234590,1744860644985,-500.0,0.00052054,120]
[358234591,1744860644996,-156.987081,0.00052054,120]
[358234592,1744860645005,-500.0,0.00052054,120]
[358234593,1744860645015,-500.0,0.00052054,120]
[358234594,1744860645024,-1517.33,0.00052054,120]
[358234595,1744860645033,-500.0,0.00052054,120]
[358234596,1744860645042,-500.0,0.00052054,120]
[358234597,1744860645052,-2125.57,0.00052054,120]
[358234598,1744860645061,-500.0,0.00052054,120]
[358234599,1744860645071,-500.0,0.00052054,120]
[358234600,1744860645080,-500.0,0.00052054,120]
[358234601,1744860645090,-925.09,0.00052054,120]
[358234602,1744860645099,-500.0,0.00052054,120]
[358234603,1744860645108,-500.0,0.00052054,120]
[358234604,1744860645118,-599.62,0.00052054,120]
[358234605,1744860645126,-500.0,0.00052054,120]
[358234606,1744860645135,-500.0,0.00052054,120]